{"text_format":"3","workbook":"xlsx","n_sheets":5,"sheets":["חשבונית","לקוחות","חשבוניות - ראשי","פרטי חשבוניות","אודות המעקב אחר החשבוניות"],"not_rendered":{"defined_names":8},"read":"whole","date_system":"1900"}

{"sheet":"חשבונית","index":0,"n_rows":39,"n_cols":7,"rows_kept":39,"merged":[[1,1,1,2],[1,3,1,4],[1,5,1,6],[2,1,2,2],[2,3,2,4],[2,5,2,6],[3,3,3,4],[4,3,4,4],[5,3,5,4],[37,1,37,4],[38,1,38,4]]}
[null,"שם החברה"]
[null,"כתובת",null,"טלפון: מספר טלפון",null,"כתובת דואר אלקטרוני"]
[null,"עיר מיקוד",null,"פקס: מספר פקס",null,"אתר אינטרנט"]
[null,"לחיוב של:",{"$f":"IFERROR(VLOOKUP(VLOOKUP(rngInvoice,InvoicesMain[],2,FALSE),CustomerList[],3,TRUE),\"\")","v":"Contoso, Ltd"},{"$f":"\"טלפון: \"&IFERROR(VLOOKUP(VLOOKUP(rngInvoice,InvoicesMain[],2,FALSE),CustomerList[],9,FALSE),\"\")","v":"טלפון: 04-2345678"},null,"מס' חשבונית:","3-456-2"]
[null,"כתובת:",{"$f":"IFERROR(IF((VLOOKUP(VLOOKUP(rngInvoice,InvoicesMain[],2,FALSE),CustomerList[],5,FALSE))=\"\",\"\",(VLOOKUP(VLOOKUP(rngInvoice,InvoicesMain[],2,FALSE),CustomerList[],5,FALSE))),\"\")","v":"סמטת אגוז 567"},{"$f":"\"פקס:   \"&IFERROR(VLOOKUP(VLOOKUP(rngInvoice,InvoicesMain[],2,FALSE),CustomerList[],11,FALSE),\"\")","v":"פקס:   04-2345679"},null,"תאריך חשבונית:",{"$f":"IFERROR(IF(VLOOKUP(rngInvoice,InvoicesMain[],3,FALSE)=\"\",\"\",VLOOKUP(rngInvoice,InvoicesMain[],3,FALSE)),\"\")","v":"2019-08-10"}]
[null,null,{"$f":"IFERROR(VLOOKUP(VLOOKUP(rngInvoice,InvoicesMain[],2,FALSE),CustomerList[],6,FALSE)&\", \"& VLOOKUP(VLOOKUP(G4,InvoicesMain[],2,FALSE),CustomerList[],7,FALSE)&\" \"&VLOOKUP(VLOOKUP(G4,InvoicesMain[],2,FALSE),CustomerList[],8,FALSE),\"\")","v":"טבריה, ישראל 0987654"},{"$f":"\"דואר אלקטרוני: \"&IFERROR(VLOOKUP(VLOOKUP(rngInvoice,InvoicesMain[],2,FALSE),CustomerList[],10,FALSE),\"\")","v":"דואר אלקטרוני: someone@example.com"}]
[null,{"$f":"\"חשבונית עבור: \"&IFERROR(VLOOKUP(rngInvoice,InvoicesMain[],4),\"\")","v":"חשבונית עבור: פרוייקט 2"}]
[null,"מס' פריט","תיאור","כמות","מחיר ליחידה","הנחה","מחיר"]
[null,{"$f":"IFERROR(INDEX(InvoiceDetails[],SMALL(IF(InvoiceDetails[מס'' חשבונית]=rngInvoice,ROW(InvoiceDetails[])-ROW(InvoiceDetails[#Headers])), ROW(1:1)), MATCH($B$8, InvoiceDetails[#Headers], 0)),\"\")","v":"א4567"},{"$f":"IFERROR(INDEX(InvoiceDetails[],SMALL(IF(InvoiceDetails[מס'' חשבונית]=rngInvoice,ROW(InvoiceDetails[])-ROW(InvoiceDetails[#Headers])), ROW(1:1)), MATCH($C$8, InvoiceDetails[#Headers], 0)),\"\")","v":"חשבונית 3-456-2 נתונים 1"},{"$f":"IFERROR(INDEX(InvoiceDetails[],SMALL(IF(InvoiceDetails[מס'' חשבונית]=rngInvoice,ROW(InvoiceDetails[])-ROW(InvoiceDetails[#Headers])), ROW(1:1)), MATCH($D$8, InvoiceDetails[#Headers], 0)),\"\")","v":39},{"$f":"IFERROR(INDEX(InvoiceDetails[],SMALL(IF(InvoiceDetails[מס'' חשבונית]=rngInvoice,ROW(InvoiceDetails[])-ROW(InvoiceDetails[#Headers])), ROW(1:1)), MATCH($E$8, InvoiceDetails[#Headers], 0)),\"\")","v":{"v":5,"d":"₪ 5.00"}},{"$f":"IFERROR(INDEX(InvoiceDetails[],SMALL(IF(InvoiceDetails[מס'' חשבונית]=rngInvoice,ROW(InvoiceDetails[])-ROW(InvoiceDetails[#Headers])), ROW(1:1)), MATCH($F$8, InvoiceDetails[#Headers], 0)),\"\")","v":0},{"$f":"IFERROR((D9*E9)-F9,\"\")","v":{"v":195,"d":"₪ 195.00"}}]
[null,{"$f":"IFERROR(INDEX(InvoiceDetails[],SMALL(IF(InvoiceDetails[מס'' חשבונית]=rngInvoice,ROW(InvoiceDetails[])-ROW(InvoiceDetails[#Headers])), ROW(2:2)), MATCH($B$8, InvoiceDetails[#Headers], 0)),\"\")","v":"א4568"},{"$f":"IFERROR(INDEX(InvoiceDetails[],SMALL(IF(InvoiceDetails[מס'' חשבונית]=rngInvoice,ROW(InvoiceDetails[])-ROW(InvoiceDetails[#Headers])), ROW(2:2)), MATCH($C$8, InvoiceDetails[#Headers], 0)),\"\")","v":"חשבונית 3-456-2 נתונים 2"},{"$f":"IFERROR(INDEX(InvoiceDetails[],SMALL(IF(InvoiceDetails[מס'' חשבונית]=rngInvoice,ROW(InvoiceDetails[])-ROW(InvoiceDetails[#Headers])), ROW(2:2)), MATCH($D$8, InvoiceDetails[#Headers], 0)),\"\")","v":40},{"$f":"IFERROR(INDEX(InvoiceDetails[],SMALL(IF(InvoiceDetails[מס'' חשבונית]=rngInvoice,ROW(InvoiceDetails[])-ROW(InvoiceDetails[#Headers])), ROW(2:2)), MATCH($E$8, InvoiceDetails[#Headers], 0)),\"\")","v":{"v":4,"d":"₪ 4.00"}},{"$f":"IFERROR(INDEX(InvoiceDetails[],SMALL(IF(InvoiceDetails[מס'' חשבונית]=rngInvoice,ROW(InvoiceDetails[])-ROW(InvoiceDetails[#Headers])), ROW(2:2)), MATCH($F$8, InvoiceDetails[#Headers], 0)),\"\")","v":{"v":5,"d":"₪ 5.00"}},{"v":155,"d":"₪ 155.00"}]
[null,{"$f":"IFERROR(INDEX(InvoiceDetails[],SMALL(IF(InvoiceDetails[מס'' חשבונית]=rngInvoice,ROW(InvoiceDetails[])-ROW(InvoiceDetails[#Headers])), ROW(3:3)), MATCH($B$8, InvoiceDetails[#Headers], 0)),\"\")","v":"א4569"},{"$f":"IFERROR(INDEX(InvoiceDetails[],SMALL(IF(InvoiceDetails[מס'' חשבונית]=rngInvoice,ROW(InvoiceDetails[])-ROW(InvoiceDetails[#Headers])), ROW(3:3)), MATCH($C$8, InvoiceDetails[#Headers], 0)),\"\")","v":"חשבונית 3-456-2 נתונים 3"},{"$f":"IFERROR(INDEX(InvoiceDetails[],SMALL(IF(InvoiceDetails[מס'' חשבונית]=rngInvoice,ROW(InvoiceDetails[])-ROW(InvoiceDetails[#Headers])), ROW(3:3)), MATCH($D$8, InvoiceDetails[#Headers], 0)),\"\")","v":30},{"$f":"IFERROR(INDEX(InvoiceDetails[],SMALL(IF(InvoiceDetails[מס'' חשבונית]=rngInvoice,ROW(InvoiceDetails[])-ROW(InvoiceDetails[#Headers])), ROW(3:3)), MATCH($E$8, InvoiceDetails[#Headers], 0)),\"\")","v":{"v":6,"d":"₪ 6.00"}},{"$f":"IFERROR(INDEX(InvoiceDetails[],SMALL(IF(InvoiceDetails[מס'' חשבונית]=rngInvoice,ROW(InvoiceDetails[])-ROW(InvoiceDetails[#Headers])), ROW(3:3)), MATCH($F$8, InvoiceDetails[#Headers], 0)),\"\")","v":{"v":7,"d":"₪ 7.00"}},{"v":173,"d":"₪ 173.00"}]
[null,{"$f":"IFERROR(INDEX(InvoiceDetails[],SMALL(IF(InvoiceDetails[מס'' חשבונית]=rngInvoice,ROW(InvoiceDetails[])-ROW(InvoiceDetails[#Headers])), ROW(4:4)), MATCH($B$8, InvoiceDetails[#Headers], 0)),\"\")","v":"א4570"},{"$f":"IFERROR(INDEX(InvoiceDetails[],SMALL(IF(InvoiceDetails[מס'' חשבונית]=rngInvoice,ROW(InvoiceDetails[])-ROW(InvoiceDetails[#Headers])), ROW(4:4)), MATCH($C$8, InvoiceDetails[#Headers], 0)),\"\")","v":"חשבונית 3-456-2 נתונים 4"},{"$f":"IFERROR(INDEX(InvoiceDetails[],SMALL(IF(InvoiceDetails[מס'' חשבונית]=rngInvoice,ROW(InvoiceDetails[])-ROW(InvoiceDetails[#Headers])), ROW(4:4)), MATCH($D$8, InvoiceDetails[#Headers], 0)),\"\")","v":40},{"$f":"IFERROR(INDEX(InvoiceDetails[],SMALL(IF(InvoiceDetails[מס'' חשבונית]=rngInvoice,ROW(InvoiceDetails[])-ROW(InvoiceDetails[#Headers])), ROW(4:4)), MATCH($E$8, InvoiceDetails[#Headers], 0)),\"\")","v":{"v":7,"d":"₪ 7.00"}},{"$f":"IFERROR(INDEX(InvoiceDetails[],SMALL(IF(InvoiceDetails[מס'' חשבונית]=rngInvoice,ROW(InvoiceDetails[])-ROW(InvoiceDetails[#Headers])), ROW(4:4)), MATCH($F$8, InvoiceDetails[#Headers], 0)),\"\")","v":0},{"v":280,"d":"₪ 280.00"}]
[null,{"$f":"IFERROR(INDEX(InvoiceDetails[],SMALL(IF(InvoiceDetails[מס'' חשבונית]=rngInvoice,ROW(InvoiceDetails[])-ROW(InvoiceDetails[#Headers])), ROW(5:5)), MATCH($B$8, InvoiceDetails[#Headers], 0)),\"\")","v":"א4571"},{"$f":"IFERROR(INDEX(InvoiceDetails[],SMALL(IF(InvoiceDetails[מס'' חשבונית]=rngInvoice,ROW(InvoiceDetails[])-ROW(InvoiceDetails[#Headers])), ROW(5:5)), MATCH($C$8, InvoiceDetails[#Headers], 0)),\"\")","v":"חשבונית 3-456-2 נתונים 5"},{"$f":"IFERROR(INDEX(InvoiceDetails[],SMALL(IF(InvoiceDetails[מס'' חשבונית]=rngInvoice,ROW(InvoiceDetails[])-ROW(InvoiceDetails[#Headers])), ROW(5:5)), MATCH($D$8, InvoiceDetails[#Headers], 0)),\"\")","v":10},{"$f":"IFERROR(INDEX(InvoiceDetails[],SMALL(IF(InvoiceDetails[מס'' חשבונית]=rngInvoice,ROW(InvoiceDetails[])-ROW(InvoiceDetails[#Headers])), ROW(5:5)), MATCH($E$8, InvoiceDetails[#Headers], 0)),\"\")","v":{"v":4,"d":"₪ 4.00"}},{"$f":"IFERROR(INDEX(InvoiceDetails[],SMALL(IF(InvoiceDetails[מס'' חשבונית]=rngInvoice,ROW(InvoiceDetails[])-ROW(InvoiceDetails[#Headers])), ROW(5:5)), MATCH($F$8, InvoiceDetails[#Headers], 0)),\"\")","v":0},{"v":40,"d":"₪ 40.00"}]
[null,{"$f":"IFERROR(INDEX(InvoiceDetails[],SMALL(IF(InvoiceDetails[מס'' חשבונית]=rngInvoice,ROW(InvoiceDetails[])-ROW(InvoiceDetails[#Headers])), ROW(6:6)), MATCH($B$8, InvoiceDetails[#Headers], 0)),\"\")","v":"א4572"},{"$f":"IFERROR(INDEX(InvoiceDetails[],SMALL(IF(InvoiceDetails[מס'' חשבונית]=rngInvoice,ROW(InvoiceDetails[])-ROW(InvoiceDetails[#Headers])), ROW(6:6)), MATCH($C$8, InvoiceDetails[#Headers], 0)),\"\")","v":"חשבונית 3-456-2 נתונים 6"},{"$f":"IFERROR(INDEX(InvoiceDetails[],SMALL(IF(InvoiceDetails[מס'' חשבונית]=rngInvoice,ROW(InvoiceDetails[])-ROW(InvoiceDetails[#Headers])), ROW(6:6)), MATCH($D$8, InvoiceDetails[#Headers], 0)),\"\")","v":5},{"$f":"IFERROR(INDEX(InvoiceDetails[],SMALL(IF(InvoiceDetails[מס'' חשבונית]=rngInvoice,ROW(InvoiceDetails[])-ROW(InvoiceDetails[#Headers])), ROW(6:6)), MATCH($E$8, InvoiceDetails[#Headers], 0)),\"\")","v":{"v":8,"d":"₪ 8.00"}},{"$f":"IFERROR(INDEX(InvoiceDetails[],SMALL(IF(InvoiceDetails[מס'' חשבונית]=rngInvoice,ROW(InvoiceDetails[])-ROW(InvoiceDetails[#Headers])), ROW(6:6)), MATCH($F$8, InvoiceDetails[#Headers], 0)),\"\")","v":0},{"v":40,"d":"₪ 40.00"}]
[null,{"$f":"IFERROR(INDEX(InvoiceDetails[],SMALL(IF(InvoiceDetails[מס'' חשבונית]=rngInvoice,ROW(InvoiceDetails[])-ROW(InvoiceDetails[#Headers])), ROW(7:7)), MATCH($B$8, InvoiceDetails[#Headers], 0)),\"\")","v":"א4573"},{"$f":"IFERROR(INDEX(InvoiceDetails[],SMALL(IF(InvoiceDetails[מס'' חשבונית]=rngInvoice,ROW(InvoiceDetails[])-ROW(InvoiceDetails[#Headers])), ROW(7:7)), MATCH($C$8, InvoiceDetails[#Headers], 0)),\"\")","v":"חשבונית 3-456-2 נתונים 7"},{"$f":"IFERROR(INDEX(InvoiceDetails[],SMALL(IF(InvoiceDetails[מס'' חשבונית]=rngInvoice,ROW(InvoiceDetails[])-ROW(InvoiceDetails[#Headers])), ROW(7:7)), MATCH($D$8, InvoiceDetails[#Headers], 0)),\"\")","v":70},{"$f":"IFERROR(INDEX(InvoiceDetails[],SMALL(IF(InvoiceDetails[מס'' חשבונית]=rngInvoice,ROW(InvoiceDetails[])-ROW(InvoiceDetails[#Headers])), ROW(7:7)), MATCH($E$8, InvoiceDetails[#Headers], 0)),\"\")","v":{"v":6,"d":"₪ 6.00"}},{"$f":"IFERROR(INDEX(InvoiceDetails[],SMALL(IF(InvoiceDetails[מס'' חשבונית]=rngInvoice,ROW(InvoiceDetails[])-ROW(InvoiceDetails[#Headers])), ROW(7:7)), MATCH($F$8, InvoiceDetails[#Headers], 0)),\"\")","v":0},{"v":420,"d":"₪ 420.00"}]
[null,{"$f":"IFERROR(INDEX(InvoiceDetails[],SMALL(IF(InvoiceDetails[מס'' חשבונית]=rngInvoice,ROW(InvoiceDetails[])-ROW(InvoiceDetails[#Headers])), ROW(8:8)), MATCH($B$8, InvoiceDetails[#Headers], 0)),\"\")","v":"א4574"},{"$f":"IFERROR(INDEX(InvoiceDetails[],SMALL(IF(InvoiceDetails[מס'' חשבונית]=rngInvoice,ROW(InvoiceDetails[])-ROW(InvoiceDetails[#Headers])), ROW(8:8)), MATCH($C$8, InvoiceDetails[#Headers], 0)),\"\")","v":"חשבונית 3-456-2 נתונים 8"},{"$f":"IFERROR(INDEX(InvoiceDetails[],SMALL(IF(InvoiceDetails[מס'' חשבונית]=rngInvoice,ROW(InvoiceDetails[])-ROW(InvoiceDetails[#Headers])), ROW(8:8)), MATCH($D$8, InvoiceDetails[#Headers], 0)),\"\")","v":25},{"$f":"IFERROR(INDEX(InvoiceDetails[],SMALL(IF(InvoiceDetails[מס'' חשבונית]=rngInvoice,ROW(InvoiceDetails[])-ROW(InvoiceDetails[#Headers])), ROW(8:8)), MATCH($E$8, InvoiceDetails[#Headers], 0)),\"\")","v":{"v":4,"d":"₪ 4.00"}},{"$f":"IFERROR(INDEX(InvoiceDetails[],SMALL(IF(InvoiceDetails[מס'' חשבונית]=rngInvoice,ROW(InvoiceDetails[])-ROW(InvoiceDetails[#Headers])), ROW(8:8)), MATCH($F$8, InvoiceDetails[#Headers], 0)),\"\")","v":0},{"v":100,"d":"₪ 100.00"}]
[null,{"$f":"IFERROR(INDEX(InvoiceDetails[],SMALL(IF(InvoiceDetails[מס'' חשבונית]=rngInvoice,ROW(InvoiceDetails[])-ROW(InvoiceDetails[#Headers])), ROW(9:9)), MATCH($B$8, InvoiceDetails[#Headers], 0)),\"\")","v":"א4575"},{"$f":"IFERROR(INDEX(InvoiceDetails[],SMALL(IF(InvoiceDetails[מס'' חשבונית]=rngInvoice,ROW(InvoiceDetails[])-ROW(InvoiceDetails[#Headers])), ROW(9:9)), MATCH($C$8, InvoiceDetails[#Headers], 0)),\"\")","v":"חשבונית 3-456-2 נתונים 9"},{"$f":"IFERROR(INDEX(InvoiceDetails[],SMALL(IF(InvoiceDetails[מס'' חשבונית]=rngInvoice,ROW(InvoiceDetails[])-ROW(InvoiceDetails[#Headers])), ROW(9:9)), MATCH($D$8, InvoiceDetails[#Headers], 0)),\"\")","v":5},{"$f":"IFERROR(INDEX(InvoiceDetails[],SMALL(IF(InvoiceDetails[מס'' חשבונית]=rngInvoice,ROW(InvoiceDetails[])-ROW(InvoiceDetails[#Headers])), ROW(9:9)), MATCH($E$8, InvoiceDetails[#Headers], 0)),\"\")","v":{"v":7,"d":"₪ 7.00"}},{"$f":"IFERROR(INDEX(InvoiceDetails[],SMALL(IF(InvoiceDetails[מס'' חשבונית]=rngInvoice,ROW(InvoiceDetails[])-ROW(InvoiceDetails[#Headers])), ROW(9:9)), MATCH($F$8, InvoiceDetails[#Headers], 0)),\"\")","v":{"v":3,"d":"₪ 3.00"}},{"v":32,"d":"₪ 32.00"}]
[null,{"$f":"IFERROR(INDEX(InvoiceDetails[],SMALL(IF(InvoiceDetails[מס'' חשבונית]=rngInvoice,ROW(InvoiceDetails[])-ROW(InvoiceDetails[#Headers])), ROW(10:10)), MATCH($B$8, InvoiceDetails[#Headers], 0)),\"\")","v":"א4576"},{"$f":"IFERROR(INDEX(InvoiceDetails[],SMALL(IF(InvoiceDetails[מס'' חשבונית]=rngInvoice,ROW(InvoiceDetails[])-ROW(InvoiceDetails[#Headers])), ROW(10:10)), MATCH($C$8, InvoiceDetails[#Headers], 0)),\"\")","v":"חשבונית 3-456-2 נתונים 10"},{"$f":"IFERROR(INDEX(InvoiceDetails[],SMALL(IF(InvoiceDetails[מס'' חשבונית]=rngInvoice,ROW(InvoiceDetails[])-ROW(InvoiceDetails[#Headers])), ROW(10:10)), MATCH($D$8, InvoiceDetails[#Headers], 0)),\"\")","v":80},{"$f":"IFERROR(INDEX(InvoiceDetails[],SMALL(IF(InvoiceDetails[מס'' חשבונית]=rngInvoice,ROW(InvoiceDetails[])-ROW(InvoiceDetails[#Headers])), ROW(10:10)), MATCH($E$8, InvoiceDetails[#Headers], 0)),\"\")","v":{"v":1,"d":"₪ 1.00"}},{"$f":"IFERROR(INDEX(InvoiceDetails[],SMALL(IF(InvoiceDetails[מס'' חשבונית]=rngInvoice,ROW(InvoiceDetails[])-ROW(InvoiceDetails[#Headers])), ROW(10:10)), MATCH($F$8, InvoiceDetails[#Headers], 0)),\"\")","v":0},{"v":80,"d":"₪ 80.00"}]
[null,{"$f":"IFERROR(INDEX(InvoiceDetails[],SMALL(IF(InvoiceDetails[מס'' חשבונית]=rngInvoice,ROW(InvoiceDetails[])-ROW(InvoiceDetails[#Headers])), ROW(11:11)), MATCH($B$8, InvoiceDetails[#Headers], 0)),\"\")","v":"א4577"},{"$f":"IFERROR(INDEX(InvoiceDetails[],SMALL(IF(InvoiceDetails[מס'' חשבונית]=rngInvoice,ROW(InvoiceDetails[])-ROW(InvoiceDetails[#Headers])), ROW(11:11)), MATCH($C$8, InvoiceDetails[#Headers], 0)),\"\")","v":"חשבונית 3-456-2 נתונים 11"},{"$f":"IFERROR(INDEX(InvoiceDetails[],SMALL(IF(InvoiceDetails[מס'' חשבונית]=rngInvoice,ROW(InvoiceDetails[])-ROW(InvoiceDetails[#Headers])), ROW(11:11)), MATCH($D$8, InvoiceDetails[#Headers], 0)),\"\")","v":65},{"$f":"IFERROR(INDEX(InvoiceDetails[],SMALL(IF(InvoiceDetails[מס'' חשבונית]=rngInvoice,ROW(InvoiceDetails[])-ROW(InvoiceDetails[#Headers])), ROW(11:11)), MATCH($E$8, InvoiceDetails[#Headers], 0)),\"\")","v":{"v":7,"d":"₪ 7.00"}},{"$f":"IFERROR(INDEX(InvoiceDetails[],SMALL(IF(InvoiceDetails[מס'' חשבונית]=rngInvoice,ROW(InvoiceDetails[])-ROW(InvoiceDetails[#Headers])), ROW(11:11)), MATCH($F$8, InvoiceDetails[#Headers], 0)),\"\")","v":0},{"v":455,"d":"₪ 455.00"}]
[null,{"$f":"IFERROR(INDEX(InvoiceDetails[],SMALL(IF(InvoiceDetails[מס'' חשבונית]=rngInvoice,ROW(InvoiceDetails[])-ROW(InvoiceDetails[#Headers])), ROW(12:12)), MATCH($B$8, InvoiceDetails[#Headers], 0)),\"\")","v":"א4578"},{"$f":"IFERROR(INDEX(InvoiceDetails[],SMALL(IF(InvoiceDetails[מס'' חשבונית]=rngInvoice,ROW(InvoiceDetails[])-ROW(InvoiceDetails[#Headers])), ROW(12:12)), MATCH($C$8, InvoiceDetails[#Headers], 0)),\"\")","v":"חשבונית 3-456-2 נתונים 12"},{"$f":"IFERROR(INDEX(InvoiceDetails[],SMALL(IF(InvoiceDetails[מס'' חשבונית]=rngInvoice,ROW(InvoiceDetails[])-ROW(InvoiceDetails[#Headers])), ROW(12:12)), MATCH($D$8, InvoiceDetails[#Headers], 0)),\"\")","v":44},{"$f":"IFERROR(INDEX(InvoiceDetails[],SMALL(IF(InvoiceDetails[מס'' חשבונית]=rngInvoice,ROW(InvoiceDetails[])-ROW(InvoiceDetails[#Headers])), ROW(12:12)), MATCH($E$8, InvoiceDetails[#Headers], 0)),\"\")","v":{"v":1,"d":"₪ 1.00"}},{"$f":"IFERROR(INDEX(InvoiceDetails[],SMALL(IF(InvoiceDetails[מס'' חשבונית]=rngInvoice,ROW(InvoiceDetails[])-ROW(InvoiceDetails[#Headers])), ROW(12:12)), MATCH($F$8, InvoiceDetails[#Headers], 0)),\"\")","v":0},{"v":44,"d":"₪ 44.00"}]
[null,{"$f":"IFERROR(INDEX(InvoiceDetails[],SMALL(IF(InvoiceDetails[מס'' חשבונית]=rngInvoice,ROW(InvoiceDetails[])-ROW(InvoiceDetails[#Headers])), ROW(13:13)), MATCH($B$8, InvoiceDetails[#Headers], 0)),\"\")","v":""},{"$f":"IFERROR(INDEX(InvoiceDetails[],SMALL(IF(InvoiceDetails[מס'' חשבונית]=rngInvoice,ROW(InvoiceDetails[])-ROW(InvoiceDetails[#Headers])), ROW(13:13)), MATCH($C$8, InvoiceDetails[#Headers], 0)),\"\")","v":""},{"$f":"IFERROR(INDEX(InvoiceDetails[],SMALL(IF(InvoiceDetails[מס'' חשבונית]=rngInvoice,ROW(InvoiceDetails[])-ROW(InvoiceDetails[#Headers])), ROW(13:13)), MATCH($D$8, InvoiceDetails[#Headers], 0)),\"\")","v":""},{"$f":"IFERROR(INDEX(InvoiceDetails[],SMALL(IF(InvoiceDetails[מס'' חשבונית]=rngInvoice,ROW(InvoiceDetails[])-ROW(InvoiceDetails[#Headers])), ROW(13:13)), MATCH($E$8, InvoiceDetails[#Headers], 0)),\"\")","v":""},{"$f":"IFERROR(INDEX(InvoiceDetails[],SMALL(IF(InvoiceDetails[מס'' חשבונית]=rngInvoice,ROW(InvoiceDetails[])-ROW(InvoiceDetails[#Headers])), ROW(13:13)), MATCH($F$8, InvoiceDetails[#Headers], 0)),\"\")","v":""},""]
[null,{"$f":"IFERROR(INDEX(InvoiceDetails[],SMALL(IF(InvoiceDetails[מס'' חשבונית]=rngInvoice,ROW(InvoiceDetails[])-ROW(InvoiceDetails[#Headers])), ROW(14:14)), MATCH($B$8, InvoiceDetails[#Headers], 0)),\"\")","v":""},{"$f":"IFERROR(INDEX(InvoiceDetails[],SMALL(IF(InvoiceDetails[מס'' חשבונית]=rngInvoice,ROW(InvoiceDetails[])-ROW(InvoiceDetails[#Headers])), ROW(14:14)), MATCH($C$8, InvoiceDetails[#Headers], 0)),\"\")","v":""},{"$f":"IFERROR(INDEX(InvoiceDetails[],SMALL(IF(InvoiceDetails[מס'' חשבונית]=rngInvoice,ROW(InvoiceDetails[])-ROW(InvoiceDetails[#Headers])), ROW(14:14)), MATCH($D$8, InvoiceDetails[#Headers], 0)),\"\")","v":""},{"$f":"IFERROR(INDEX(InvoiceDetails[],SMALL(IF(InvoiceDetails[מס'' חשבונית]=rngInvoice,ROW(InvoiceDetails[])-ROW(InvoiceDetails[#Headers])), ROW(14:14)), MATCH($E$8, InvoiceDetails[#Headers], 0)),\"\")","v":""},{"$f":"IFERROR(INDEX(InvoiceDetails[],SMALL(IF(InvoiceDetails[מס'' חשבונית]=rngInvoice,ROW(InvoiceDetails[])-ROW(InvoiceDetails[#Headers])), ROW(14:14)), MATCH($F$8, InvoiceDetails[#Headers], 0)),\"\")","v":""},""]
[null,{"$f":"IFERROR(INDEX(InvoiceDetails[],SMALL(IF(InvoiceDetails[מס'' חשבונית]=rngInvoice,ROW(InvoiceDetails[])-ROW(InvoiceDetails[#Headers])), ROW(15:15)), MATCH($B$8, InvoiceDetails[#Headers], 0)),\"\")","v":""},{"$f":"IFERROR(INDEX(InvoiceDetails[],SMALL(IF(InvoiceDetails[מס'' חשבונית]=rngInvoice,ROW(InvoiceDetails[])-ROW(InvoiceDetails[#Headers])), ROW(15:15)), MATCH($C$8, InvoiceDetails[#Headers], 0)),\"\")","v":""},{"$f":"IFERROR(INDEX(InvoiceDetails[],SMALL(IF(InvoiceDetails[מס'' חשבונית]=rngInvoice,ROW(InvoiceDetails[])-ROW(InvoiceDetails[#Headers])), ROW(15:15)), MATCH($D$8, InvoiceDetails[#Headers], 0)),\"\")","v":""},{"$f":"IFERROR(INDEX(InvoiceDetails[],SMALL(IF(InvoiceDetails[מס'' חשבונית]=rngInvoice,ROW(InvoiceDetails[])-ROW(InvoiceDetails[#Headers])), ROW(15:15)), MATCH($E$8, InvoiceDetails[#Headers], 0)),\"\")","v":""},{"$f":"IFERROR(INDEX(InvoiceDetails[],SMALL(IF(InvoiceDetails[מס'' חשבונית]=rngInvoice,ROW(InvoiceDetails[])-ROW(InvoiceDetails[#Headers])), ROW(15:15)), MATCH($F$8, InvoiceDetails[#Headers], 0)),\"\")","v":""},""]
[null,{"$f":"IFERROR(INDEX(InvoiceDetails[],SMALL(IF(InvoiceDetails[מס'' חשבונית]=rngInvoice,ROW(InvoiceDetails[])-ROW(InvoiceDetails[#Headers])), ROW(16:16)), MATCH($B$8, InvoiceDetails[#Headers], 0)),\"\")","v":""},{"$f":"IFERROR(INDEX(InvoiceDetails[],SMALL(IF(InvoiceDetails[מס'' חשבונית]=rngInvoice,ROW(InvoiceDetails[])-ROW(InvoiceDetails[#Headers])), ROW(16:16)), MATCH($C$8, InvoiceDetails[#Headers], 0)),\"\")","v":""},{"$f":"IFERROR(INDEX(InvoiceDetails[],SMALL(IF(InvoiceDetails[מס'' חשבונית]=rngInvoice,ROW(InvoiceDetails[])-ROW(InvoiceDetails[#Headers])), ROW(16:16)), MATCH($D$8, InvoiceDetails[#Headers], 0)),\"\")","v":""},{"$f":"IFERROR(INDEX(InvoiceDetails[],SMALL(IF(InvoiceDetails[מס'' חשבונית]=rngInvoice,ROW(InvoiceDetails[])-ROW(InvoiceDetails[#Headers])), ROW(16:16)), MATCH($E$8, InvoiceDetails[#Headers], 0)),\"\")","v":""},{"$f":"IFERROR(INDEX(InvoiceDetails[],SMALL(IF(InvoiceDetails[מס'' חשבונית]=rngInvoice,ROW(InvoiceDetails[])-ROW(InvoiceDetails[#Headers])), ROW(16:16)), MATCH($F$8, InvoiceDetails[#Headers], 0)),\"\")","v":""},""]
[null,{"$f":"IFERROR(INDEX(InvoiceDetails[],SMALL(IF(InvoiceDetails[מס'' חשבונית]=rngInvoice,ROW(InvoiceDetails[])-ROW(InvoiceDetails[#Headers])), ROW(17:17)), MATCH($B$8, InvoiceDetails[#Headers], 0)),\"\")","v":""},{"$f":"IFERROR(INDEX(InvoiceDetails[],SMALL(IF(InvoiceDetails[מס'' חשבונית]=rngInvoice,ROW(InvoiceDetails[])-ROW(InvoiceDetails[#Headers])), ROW(17:17)), MATCH($C$8, InvoiceDetails[#Headers], 0)),\"\")","v":""},{"$f":"IFERROR(INDEX(InvoiceDetails[],SMALL(IF(InvoiceDetails[מס'' חשבונית]=rngInvoice,ROW(InvoiceDetails[])-ROW(InvoiceDetails[#Headers])), ROW(17:17)), MATCH($D$8, InvoiceDetails[#Headers], 0)),\"\")","v":""},{"$f":"IFERROR(INDEX(InvoiceDetails[],SMALL(IF(InvoiceDetails[מס'' חשבונית]=rngInvoice,ROW(InvoiceDetails[])-ROW(InvoiceDetails[#Headers])), ROW(17:17)), MATCH($E$8, InvoiceDetails[#Headers], 0)),\"\")","v":""},{"$f":"IFERROR(INDEX(InvoiceDetails[],SMALL(IF(InvoiceDetails[מס'' חשבונית]=rngInvoice,ROW(InvoiceDetails[])-ROW(InvoiceDetails[#Headers])), ROW(17:17)), MATCH($F$8, InvoiceDetails[#Headers], 0)),\"\")","v":""},""]
[null,{"$f":"IFERROR(INDEX(InvoiceDetails[],SMALL(IF(InvoiceDetails[מס'' חשבונית]=rngInvoice,ROW(InvoiceDetails[])-ROW(InvoiceDetails[#Headers])), ROW(18:18)), MATCH($B$8, InvoiceDetails[#Headers], 0)),\"\")","v":""},{"$f":"IFERROR(INDEX(InvoiceDetails[],SMALL(IF(InvoiceDetails[מס'' חשבונית]=rngInvoice,ROW(InvoiceDetails[])-ROW(InvoiceDetails[#Headers])), ROW(18:18)), MATCH($C$8, InvoiceDetails[#Headers], 0)),\"\")","v":""},{"$f":"IFERROR(INDEX(InvoiceDetails[],SMALL(IF(InvoiceDetails[מס'' חשבונית]=rngInvoice,ROW(InvoiceDetails[])-ROW(InvoiceDetails[#Headers])), ROW(18:18)), MATCH($D$8, InvoiceDetails[#Headers], 0)),\"\")","v":""},{"$f":"IFERROR(INDEX(InvoiceDetails[],SMALL(IF(InvoiceDetails[מס'' חשבונית]=rngInvoice,ROW(InvoiceDetails[])-ROW(InvoiceDetails[#Headers])), ROW(18:18)), MATCH($E$8, InvoiceDetails[#Headers], 0)),\"\")","v":""},{"$f":"IFERROR(INDEX(InvoiceDetails[],SMALL(IF(InvoiceDetails[מס'' חשבונית]=rngInvoice,ROW(InvoiceDetails[])-ROW(InvoiceDetails[#Headers])), ROW(18:18)), MATCH($F$8, InvoiceDetails[#Headers], 0)),\"\")","v":""},""]
[null,{"$f":"IFERROR(INDEX(InvoiceDetails[],SMALL(IF(InvoiceDetails[מס'' חשבונית]=rngInvoice,ROW(InvoiceDetails[])-ROW(InvoiceDetails[#Headers])), ROW(19:19)), MATCH($B$8, InvoiceDetails[#Headers], 0)),\"\")","v":""},{"$f":"IFERROR(INDEX(InvoiceDetails[],SMALL(IF(InvoiceDetails[מס'' חשבונית]=rngInvoice,ROW(InvoiceDetails[])-ROW(InvoiceDetails[#Headers])), ROW(19:19)), MATCH($C$8, InvoiceDetails[#Headers], 0)),\"\")","v":""},{"$f":"IFERROR(INDEX(InvoiceDetails[],SMALL(IF(InvoiceDetails[מס'' חשבונית]=rngInvoice,ROW(InvoiceDetails[])-ROW(InvoiceDetails[#Headers])), ROW(19:19)), MATCH($D$8, InvoiceDetails[#Headers], 0)),\"\")","v":""},{"$f":"IFERROR(INDEX(InvoiceDetails[],SMALL(IF(InvoiceDetails[מס'' חשבונית]=rngInvoice,ROW(InvoiceDetails[])-ROW(InvoiceDetails[#Headers])), ROW(19:19)), MATCH($E$8, InvoiceDetails[#Headers], 0)),\"\")","v":""},{"$f":"IFERROR(INDEX(InvoiceDetails[],SMALL(IF(InvoiceDetails[מס'' חשבונית]=rngInvoice,ROW(InvoiceDetails[])-ROW(InvoiceDetails[#Headers])), ROW(19:19)), MATCH($F$8, InvoiceDetails[#Headers], 0)),\"\")","v":""},""]
[null,{"$f":"IFERROR(INDEX(InvoiceDetails[],SMALL(IF(InvoiceDetails[מס'' חשבונית]=rngInvoice,ROW(InvoiceDetails[])-ROW(InvoiceDetails[#Headers])), ROW(20:20)), MATCH($B$8, InvoiceDetails[#Headers], 0)),\"\")","v":""},{"$f":"IFERROR(INDEX(InvoiceDetails[],SMALL(IF(InvoiceDetails[מס'' חשבונית]=rngInvoice,ROW(InvoiceDetails[])-ROW(InvoiceDetails[#Headers])), ROW(20:20)), MATCH($C$8, InvoiceDetails[#Headers], 0)),\"\")","v":""},{"$f":"IFERROR(INDEX(InvoiceDetails[],SMALL(IF(InvoiceDetails[מס'' חשבונית]=rngInvoice,ROW(InvoiceDetails[])-ROW(InvoiceDetails[#Headers])), ROW(20:20)), MATCH($D$8, InvoiceDetails[#Headers], 0)),\"\")","v":""},{"$f":"IFERROR(INDEX(InvoiceDetails[],SMALL(IF(InvoiceDetails[מס'' חשבונית]=rngInvoice,ROW(InvoiceDetails[])-ROW(InvoiceDetails[#Headers])), ROW(20:20)), MATCH($E$8, InvoiceDetails[#Headers], 0)),\"\")","v":""},{"$f":"IFERROR(INDEX(InvoiceDetails[],SMALL(IF(InvoiceDetails[מס'' חשבונית]=rngInvoice,ROW(InvoiceDetails[])-ROW(InvoiceDetails[#Headers])), ROW(20:20)), MATCH($F$8, InvoiceDetails[#Headers], 0)),\"\")","v":""},""]
[null,{"$f":"IFERROR(INDEX(InvoiceDetails[],SMALL(IF(InvoiceDetails[מס'' חשבונית]=rngInvoice,ROW(InvoiceDetails[])-ROW(InvoiceDetails[#Headers])), ROW(21:21)), MATCH($B$8, InvoiceDetails[#Headers], 0)),\"\")","v":""},{"$f":"IFERROR(INDEX(InvoiceDetails[],SMALL(IF(InvoiceDetails[מס'' חשבונית]=rngInvoice,ROW(InvoiceDetails[])-ROW(InvoiceDetails[#Headers])), ROW(21:21)), MATCH($C$8, InvoiceDetails[#Headers], 0)),\"\")","v":""},{"$f":"IFERROR(INDEX(InvoiceDetails[],SMALL(IF(InvoiceDetails[מס'' חשבונית]=rngInvoice,ROW(InvoiceDetails[])-ROW(InvoiceDetails[#Headers])), ROW(21:21)), MATCH($D$8, InvoiceDetails[#Headers], 0)),\"\")","v":""},{"$f":"IFERROR(INDEX(InvoiceDetails[],SMALL(IF(InvoiceDetails[מס'' חשבונית]=rngInvoice,ROW(InvoiceDetails[])-ROW(InvoiceDetails[#Headers])), ROW(21:21)), MATCH($E$8, InvoiceDetails[#Headers], 0)),\"\")","v":""},{"$f":"IFERROR(INDEX(InvoiceDetails[],SMALL(IF(InvoiceDetails[מס'' חשבונית]=rngInvoice,ROW(InvoiceDetails[])-ROW(InvoiceDetails[#Headers])), ROW(21:21)), MATCH($F$8, InvoiceDetails[#Headers], 0)),\"\")","v":""},""]
[null,{"$f":"IFERROR(INDEX(InvoiceDetails[],SMALL(IF(InvoiceDetails[מס'' חשבונית]=rngInvoice,ROW(InvoiceDetails[])-ROW(InvoiceDetails[#Headers])), ROW(22:22)), MATCH($B$8, InvoiceDetails[#Headers], 0)),\"\")","v":""},{"$f":"IFERROR(INDEX(InvoiceDetails[],SMALL(IF(InvoiceDetails[מס'' חשבונית]=rngInvoice,ROW(InvoiceDetails[])-ROW(InvoiceDetails[#Headers])), ROW(22:22)), MATCH($C$8, InvoiceDetails[#Headers], 0)),\"\")","v":""},{"$f":"IFERROR(INDEX(InvoiceDetails[],SMALL(IF(InvoiceDetails[מס'' חשבונית]=rngInvoice,ROW(InvoiceDetails[])-ROW(InvoiceDetails[#Headers])), ROW(22:22)), MATCH($D$8, InvoiceDetails[#Headers], 0)),\"\")","v":""},{"$f":"IFERROR(INDEX(InvoiceDetails[],SMALL(IF(InvoiceDetails[מס'' חשבונית]=rngInvoice,ROW(InvoiceDetails[])-ROW(InvoiceDetails[#Headers])), ROW(22:22)), MATCH($E$8, InvoiceDetails[#Headers], 0)),\"\")","v":""},{"$f":"IFERROR(INDEX(InvoiceDetails[],SMALL(IF(InvoiceDetails[מס'' חשבונית]=rngInvoice,ROW(InvoiceDetails[])-ROW(InvoiceDetails[#Headers])), ROW(22:22)), MATCH($F$8, InvoiceDetails[#Headers], 0)),\"\")","v":""},""]
[null,{"$f":"IFERROR(INDEX(InvoiceDetails[],SMALL(IF(InvoiceDetails[מס'' חשבונית]=rngInvoice,ROW(InvoiceDetails[])-ROW(InvoiceDetails[#Headers])), ROW(23:23)), MATCH($B$8, InvoiceDetails[#Headers], 0)),\"\")","v":""},{"$f":"IFERROR(INDEX(InvoiceDetails[],SMALL(IF(InvoiceDetails[מס'' חשבונית]=rngInvoice,ROW(InvoiceDetails[])-ROW(InvoiceDetails[#Headers])), ROW(23:23)), MATCH($C$8, InvoiceDetails[#Headers], 0)),\"\")","v":""},{"$f":"IFERROR(INDEX(InvoiceDetails[],SMALL(IF(InvoiceDetails[מס'' חשבונית]=rngInvoice,ROW(InvoiceDetails[])-ROW(InvoiceDetails[#Headers])), ROW(23:23)), MATCH($D$8, InvoiceDetails[#Headers], 0)),\"\")","v":""},{"$f":"IFERROR(INDEX(InvoiceDetails[],SMALL(IF(InvoiceDetails[מס'' חשבונית]=rngInvoice,ROW(InvoiceDetails[])-ROW(InvoiceDetails[#Headers])), ROW(23:23)), MATCH($E$8, InvoiceDetails[#Headers], 0)),\"\")","v":""},{"$f":"IFERROR(INDEX(InvoiceDetails[],SMALL(IF(InvoiceDetails[מס'' חשבונית]=rngInvoice,ROW(InvoiceDetails[])-ROW(InvoiceDetails[#Headers])), ROW(23:23)), MATCH($F$8, InvoiceDetails[#Headers], 0)),\"\")","v":""},""]
[null,{"$f":"IFERROR(INDEX(InvoiceDetails[],SMALL(IF(InvoiceDetails[מס'' חשבונית]=rngInvoice,ROW(InvoiceDetails[])-ROW(InvoiceDetails[#Headers])), ROW(24:24)), MATCH($B$8, InvoiceDetails[#Headers], 0)),\"\")","v":""},{"$f":"IFERROR(INDEX(InvoiceDetails[],SMALL(IF(InvoiceDetails[מס'' חשבונית]=rngInvoice,ROW(InvoiceDetails[])-ROW(InvoiceDetails[#Headers])), ROW(24:24)), MATCH($C$8, InvoiceDetails[#Headers], 0)),\"\")","v":""},{"$f":"IFERROR(INDEX(InvoiceDetails[],SMALL(IF(InvoiceDetails[מס'' חשבונית]=rngInvoice,ROW(InvoiceDetails[])-ROW(InvoiceDetails[#Headers])), ROW(24:24)), MATCH($D$8, InvoiceDetails[#Headers], 0)),\"\")","v":""},{"$f":"IFERROR(INDEX(InvoiceDetails[],SMALL(IF(InvoiceDetails[מס'' חשבונית]=rngInvoice,ROW(InvoiceDetails[])-ROW(InvoiceDetails[#Headers])), ROW(24:24)), MATCH($E$8, InvoiceDetails[#Headers], 0)),\"\")","v":""},{"$f":"IFERROR(INDEX(InvoiceDetails[],SMALL(IF(InvoiceDetails[מס'' חשבונית]=rngInvoice,ROW(InvoiceDetails[])-ROW(InvoiceDetails[#Headers])), ROW(24:24)), MATCH($F$8, InvoiceDetails[#Headers], 0)),\"\")","v":""},""]
[null,{"$f":"IFERROR(INDEX(InvoiceDetails[],SMALL(IF(InvoiceDetails[מס'' חשבונית]=rngInvoice,ROW(InvoiceDetails[])-ROW(InvoiceDetails[#Headers])), ROW(25:25)), MATCH($B$8, InvoiceDetails[#Headers], 0)),\"\")","v":""},{"$f":"IFERROR(INDEX(InvoiceDetails[],SMALL(IF(InvoiceDetails[מס'' חשבונית]=rngInvoice,ROW(InvoiceDetails[])-ROW(InvoiceDetails[#Headers])), ROW(25:25)), MATCH($C$8, InvoiceDetails[#Headers], 0)),\"\")","v":""},{"$f":"IFERROR(INDEX(InvoiceDetails[],SMALL(IF(InvoiceDetails[מס'' חשבונית]=rngInvoice,ROW(InvoiceDetails[])-ROW(InvoiceDetails[#Headers])), ROW(25:25)), MATCH($D$8, InvoiceDetails[#Headers], 0)),\"\")","v":""},{"$f":"IFERROR(INDEX(InvoiceDetails[],SMALL(IF(InvoiceDetails[מס'' חשבונית]=rngInvoice,ROW(InvoiceDetails[])-ROW(InvoiceDetails[#Headers])), ROW(25:25)), MATCH($E$8, InvoiceDetails[#Headers], 0)),\"\")","v":""},{"$f":"IFERROR(INDEX(InvoiceDetails[],SMALL(IF(InvoiceDetails[מס'' חשבונית]=rngInvoice,ROW(InvoiceDetails[])-ROW(InvoiceDetails[#Headers])), ROW(25:25)), MATCH($F$8, InvoiceDetails[#Headers], 0)),\"\")","v":""},""]
[{"$nulls":5},"סכום ביניים של החשבונית",{"$f":"SUM(ProjectInvoice[מחיר])","v":{"v":2014,"d":"₪ 2,014.00"}}]
[{"$nulls":5},"שיעור מס",{"$f":"VLOOKUP(rngInvoice,InvoicesMain[],5)","v":{"v":0.0875,"d":"8.75%"}}]
[{"$nulls":5},"מע\"מ",{"$f":"G34*G35","v":{"v":176.225,"d":"₪ 176.23"}}]
[{"$nulls":5},"אחר",{"$f":"VLOOKUP(rngInvoice,InvoicesMain[],6)","v":0}]
[null,{"$f":"\"יש לרשום את כל השיקים לפקודת \"&שם_החברה&\".\"","v":"יש לרשום את כל השיקים לפקודת שם החברה."},{"$nulls":3},"מקדמה שהתקבלה",{"$f":"VLOOKUP(rngInvoice,InvoicesMain[],7)","v":0}]
[null,"תאריך היעד לתשלום הסכום הכולל יחול בעוד <#> ימים. חשבונות שתאריך היעד שלהם חלף כפופים לחיוב שירות בגובה ‎<#>%‎ מדי חודש.",{"$nulls":3},"סה\"כ",{"$f":"(G34+G36+G37)-G38","v":{"v":2190.225,"d":"₪ 2,190.23"}}]

{"sheet":"לקוחות","index":1,"n_rows":6,"n_cols":12,"rows_kept":6}
[]
[null,null,"לקוחות"]
[null,"בדיקת מידע","מס' חברה","שם החברה","שם איש הקשר","כתובת","עיר","מדינה","מיקוד","טלפון","דואר אלקטרוני","פקס"]
[null,{"$f":"C4& \" - \"&D4","v":"1 - Tailspin Toys "},1,"Tailspin Toys ","דניאל מלמד","רחוב הדובדבן 345","עכו","ישראל","1234567","04-1234556","someone@example.com","04-7654312"]
[null,"2 - Contoso, Ltd",2,"Contoso, Ltd","נעם מעוז","סמטת אגוז 567","טבריה","ישראל","0987654","04-2345678","someone@example.com","04-2345679"]
[null,"סכומים כוללים",{"$f":"\"סה'כ לקוחות: \"&SUBTOTAL(103,CustomerList[מס'' חברה])","v":"סה'כ לקוחות: 2"}]

{"sheet":"חשבוניות - ראשי","index":2,"n_rows":6,"n_cols":11,"rows_kept":6}
[]
[null,"חשבוניות"]
[null,"מס' חשבונית","חברה","תאריך חשבונית","תיאור הפרוייקט","שיעור מס","אחר","מקדמה","סכום כולל של פרטים","סכום כולל בחשבונית","הערות"]
[null,"3-456-1","1 - Tailspin Toys ",{"$f":"TODAY()","v":"2019-07-31"},"פרוייקט 1",{"v":0.0875,"d":"8.75%"},{"v":100,"d":"₪ 100.00"},{"v":100,"d":"₪ 100.00"},{"$f":"SUMIF(InvoiceDetails[מס'' חשבונית],\"=\"&InvoicesMain[[#This Row],[מס'' חשבונית]],InvoiceDetails[סה\"כ])","v":{"v":5200,"d":"₪ 5,200.00"}},{"$f":"(InvoicesMain[[#This Row],[סכום כולל של פרטים]]*(1+InvoicesMain[[#This Row],[שיעור מס]]))+InvoicesMain[[#This Row],[אחר]]-InvoicesMain[[#This Row],[מקדמה]]","v":{"v":5654.999999999999,"d":"₪ 5,655.00"}}]
[null,"3-456-2","2 - Contoso, Ltd",{"$f":"TODAY()+10","v":"2019-08-10"},"פרוייקט 2",{"v":0.0875,"d":"8.75%"},null,null,{"$f":"SUMIF(InvoiceDetails[מס'' חשבונית],\"=\"&InvoicesMain[[#This Row],[מס'' חשבונית]],InvoiceDetails[סה\"כ])","v":{"v":2014,"d":"₪ 2,014.00"}},{"$f":"(InvoicesMain[[#This Row],[סכום כולל של פרטים]]*(1+InvoicesMain[[#This Row],[שיעור מס]]))+InvoicesMain[[#This Row],[אחר]]-InvoicesMain[[#This Row],[מקדמה]]","v":{"v":2190.225,"d":"₪ 2,190.23"}}]
[null,"סכומים כוללים",{"$f":"\"סך הכל חשבוניות: \"&SUBTOTAL(103,InvoicesMain[מס'' חשבונית])","v":"סך הכל חשבוניות: 2"},{"$nulls":3},{"$f":"SUBTOTAL(109,InvoicesMain[אחר])","v":{"v":100,"d":"₪ 100.00"}},{"$f":"SUBTOTAL(109,InvoicesMain[מקדמה])","v":{"v":100,"d":"₪ 100.00"}},{"$f":"SUBTOTAL(109,InvoicesMain[סכום כולל של פרטים])","v":{"v":7214,"d":"₪ 7,214.00"}},{"$f":"SUBTOTAL(109,InvoicesMain[סכום כולל בחשבונית])","v":{"v":7845.2249999999985,"d":"₪ 7,845.23"}}]

{"sheet":"פרטי חשבוניות","index":3,"n_rows":40,"n_cols":8,"rows_kept":40}
[]
[null,"פרטי חשבוניות"]
[null,"תיאור","מס' חשבונית","מס' פריט","כמות","מחיר ליחידה","הנחה","סה\"כ"]
[null,"חשבונית 3-456-1 נתונים 1","3-456-1",1,1,{"v":1,"d":"₪ 1.00"},{"v":1,"d":"₪ 1.00"},{"$f":"(InvoiceDetails[[#This Row],[כמות]]*InvoiceDetails[[#This Row],[מחיר ליחידה]])-InvoiceDetails[[#This Row],[הנחה]]","v":{"v":0,"d":"₪ 0.00"}}]
[null,"חשבונית 3-456-1 נתונים 2","3-456-1",2,2,{"v":2,"d":"₪ 2.00"},{"v":2,"d":"₪ 2.00"},{"$f":"(InvoiceDetails[[#This Row],[כמות]]*InvoiceDetails[[#This Row],[מחיר ליחידה]])-InvoiceDetails[[#This Row],[הנחה]]","v":{"v":2,"d":"₪ 2.00"}}]
[null,"חשבונית 3-456-1 נתונים 3","3-456-1",3,3,{"v":3,"d":"₪ 3.00"},{"v":3,"d":"₪ 3.00"},{"$f":"(InvoiceDetails[[#This Row],[כמות]]*InvoiceDetails[[#This Row],[מחיר ליחידה]])-InvoiceDetails[[#This Row],[הנחה]]","v":{"v":6,"d":"₪ 6.00"}}]
[null,"חשבונית 3-456-1 נתונים 4","3-456-1",4,4,{"v":4,"d":"₪ 4.00"},{"v":4,"d":"₪ 4.00"},{"$f":"(InvoiceDetails[[#This Row],[כמות]]*InvoiceDetails[[#This Row],[מחיר ליחידה]])-InvoiceDetails[[#This Row],[הנחה]]","v":{"v":12,"d":"₪ 12.00"}}]
[null,"חשבונית 3-456-1 נתונים 5","3-456-1",5,5,{"v":5,"d":"₪ 5.00"},{"v":5,"d":"₪ 5.00"},{"$f":"(InvoiceDetails[[#This Row],[כמות]]*InvoiceDetails[[#This Row],[מחיר ליחידה]])-InvoiceDetails[[#This Row],[הנחה]]","v":{"v":20,"d":"₪ 20.00"}}]
[null,"חשבונית 3-456-1 נתונים 6","3-456-1",6,6,{"v":6,"d":"₪ 6.00"},{"v":6,"d":"₪ 6.00"},{"$f":"(InvoiceDetails[[#This Row],[כמות]]*InvoiceDetails[[#This Row],[מחיר ליחידה]])-InvoiceDetails[[#This Row],[הנחה]]","v":{"v":30,"d":"₪ 30.00"}}]
[null,"חשבונית 3-456-1 נתונים 7","3-456-1",7,7,{"v":7,"d":"₪ 7.00"},{"v":7,"d":"₪ 7.00"},{"$f":"(InvoiceDetails[[#This Row],[כמות]]*InvoiceDetails[[#This Row],[מחיר ליחידה]])-InvoiceDetails[[#This Row],[הנחה]]","v":{"v":42,"d":"₪ 42.00"}}]
[null,"חשבונית 3-456-1 נתונים 8","3-456-1",8,8,{"v":8,"d":"₪ 8.00"},{"v":8,"d":"₪ 8.00"},{"$f":"(InvoiceDetails[[#This Row],[כמות]]*InvoiceDetails[[#This Row],[מחיר ליחידה]])-InvoiceDetails[[#This Row],[הנחה]]","v":{"v":56,"d":"₪ 56.00"}}]
[null,"חשבונית 3-456-1 נתונים 9","3-456-1",9,9,{"v":9,"d":"₪ 9.00"},{"v":9,"d":"₪ 9.00"},{"$f":"(InvoiceDetails[[#This Row],[כמות]]*InvoiceDetails[[#This Row],[מחיר ליחידה]])-InvoiceDetails[[#This Row],[הנחה]]","v":{"v":72,"d":"₪ 72.00"}}]
[null,"חשבונית 3-456-1 נתונים 10","3-456-1",10,10,{"v":10,"d":"₪ 10.00"},{"v":10,"d":"₪ 10.00"},{"$f":"(InvoiceDetails[[#This Row],[כמות]]*InvoiceDetails[[#This Row],[מחיר ליחידה]])-InvoiceDetails[[#This Row],[הנחה]]","v":{"v":90,"d":"₪ 90.00"}}]
[null,"חשבונית 3-456-1 נתונים 11","3-456-1",11,11,{"v":11,"d":"₪ 11.00"},{"v":11,"d":"₪ 11.00"},{"$f":"(InvoiceDetails[[#This Row],[כמות]]*InvoiceDetails[[#This Row],[מחיר ליחידה]])-InvoiceDetails[[#This Row],[הנחה]]","v":{"v":110,"d":"₪ 110.00"}}]
[null,"חשבונית 3-456-1 נתונים 12","3-456-1",12,12,{"v":12,"d":"₪ 12.00"},{"v":12,"d":"₪ 12.00"},{"$f":"(InvoiceDetails[[#This Row],[כמות]]*InvoiceDetails[[#This Row],[מחיר ליחידה]])-InvoiceDetails[[#This Row],[הנחה]]","v":{"v":132,"d":"₪ 132.00"}}]
[null,"חשבונית 3-456-1 נתונים 13","3-456-1",13,13,{"v":13,"d":"₪ 13.00"},{"v":13,"d":"₪ 13.00"},{"$f":"(InvoiceDetails[[#This Row],[כמות]]*InvoiceDetails[[#This Row],[מחיר ליחידה]])-InvoiceDetails[[#This Row],[הנחה]]","v":{"v":156,"d":"₪ 156.00"}}]
[null,"חשבונית 3-456-1 נתונים 14","3-456-1",14,14,{"v":14,"d":"₪ 14.00"},{"v":14,"d":"₪ 14.00"},{"$f":"(InvoiceDetails[[#This Row],[כמות]]*InvoiceDetails[[#This Row],[מחיר ליחידה]])-InvoiceDetails[[#This Row],[הנחה]]","v":{"v":182,"d":"₪ 182.00"}}]
[null,"חשבונית 3-456-1 נתונים 15","3-456-1",15,15,{"v":15,"d":"₪ 15.00"},{"v":15,"d":"₪ 15.00"},{"$f":"(InvoiceDetails[[#This Row],[כמות]]*InvoiceDetails[[#This Row],[מחיר ליחידה]])-InvoiceDetails[[#This Row],[הנחה]]","v":{"v":210,"d":"₪ 210.00"}}]
[null,"חשבונית 3-456-1 נתונים 16","3-456-1",16,16,{"v":16,"d":"₪ 16.00"},{"v":16,"d":"₪ 16.00"},{"$f":"(InvoiceDetails[[#This Row],[כמות]]*InvoiceDetails[[#This Row],[מחיר ליחידה]])-InvoiceDetails[[#This Row],[הנחה]]","v":{"v":240,"d":"₪ 240.00"}}]
[null,"חשבונית 3-456-1 נתונים 17","3-456-1",17,17,{"v":17,"d":"₪ 17.00"},{"v":17,"d":"₪ 17.00"},{"$f":"(InvoiceDetails[[#This Row],[כמות]]*InvoiceDetails[[#This Row],[מחיר ליחידה]])-InvoiceDetails[[#This Row],[הנחה]]","v":{"v":272,"d":"₪ 272.00"}}]
[null,"חשבונית 3-456-1 נתונים 18","3-456-1",18,18,{"v":18,"d":"₪ 18.00"},{"v":18,"d":"₪ 18.00"},{"$f":"(InvoiceDetails[[#This Row],[כמות]]*InvoiceDetails[[#This Row],[מחיר ליחידה]])-InvoiceDetails[[#This Row],[הנחה]]","v":{"v":306,"d":"₪ 306.00"}}]
[null,"חשבונית 3-456-1 נתונים 19","3-456-1",19,19,{"v":19,"d":"₪ 19.00"},{"v":19,"d":"₪ 19.00"},{"$f":"(InvoiceDetails[[#This Row],[כמות]]*InvoiceDetails[[#This Row],[מחיר ליחידה]])-InvoiceDetails[[#This Row],[הנחה]]","v":{"v":342,"d":"₪ 342.00"}}]
[null,"חשבונית 3-456-1 נתונים 20","3-456-1",20,20,{"v":20,"d":"₪ 20.00"},{"v":20,"d":"₪ 20.00"},{"$f":"(InvoiceDetails[[#This Row],[כמות]]*InvoiceDetails[[#This Row],[מחיר ליחידה]])-InvoiceDetails[[#This Row],[הנחה]]","v":{"v":380,"d":"₪ 380.00"}}]
[null,"חשבונית 3-456-1 נתונים 21","3-456-1",21,21,{"v":21,"d":"₪ 21.00"},{"v":21,"d":"₪ 21.00"},{"$f":"(InvoiceDetails[[#This Row],[כמות]]*InvoiceDetails[[#This Row],[מחיר ליחידה]])-InvoiceDetails[[#This Row],[הנחה]]","v":{"v":420,"d":"₪ 420.00"}}]
[null,"חשבונית 3-456-1 נתונים 22","3-456-1",22,22,{"v":22,"d":"₪ 22.00"},{"v":22,"d":"₪ 22.00"},{"$f":"(InvoiceDetails[[#This Row],[כמות]]*InvoiceDetails[[#This Row],[מחיר ליחידה]])-InvoiceDetails[[#This Row],[הנחה]]","v":{"v":462,"d":"₪ 462.00"}}]
[null,"חשבונית 3-456-1 נתונים 23","3-456-1",23,23,{"v":23,"d":"₪ 23.00"},{"v":23,"d":"₪ 23.00"},{"$f":"(InvoiceDetails[[#This Row],[כמות]]*InvoiceDetails[[#This Row],[מחיר ליחידה]])-InvoiceDetails[[#This Row],[הנחה]]","v":{"v":506,"d":"₪ 506.00"}}]
[null,"חשבונית 3-456-1 נתונים 24","3-456-1",24,24,{"v":24,"d":"₪ 24.00"},{"v":24,"d":"₪ 24.00"},{"$f":"(InvoiceDetails[[#This Row],[כמות]]*InvoiceDetails[[#This Row],[מחיר ליחידה]])-InvoiceDetails[[#This Row],[הנחה]]","v":{"v":552,"d":"₪ 552.00"}}]
[null,"חשבונית 3-456-1 נתונים 25","3-456-1",25,25,{"v":25,"d":"₪ 25.00"},{"v":25,"d":"₪ 25.00"},{"$f":"(InvoiceDetails[[#This Row],[כמות]]*InvoiceDetails[[#This Row],[מחיר ליחידה]])-InvoiceDetails[[#This Row],[הנחה]]","v":{"v":600,"d":"₪ 600.00"}}]
[null,"חשבונית 3-456-2 נתונים 1","3-456-2","א4567",39,{"v":5,"d":"₪ 5.00"},null,{"$f":"(InvoiceDetails[[#This Row],[כמות]]*InvoiceDetails[[#This Row],[מחיר ליחידה]])-InvoiceDetails[[#This Row],[הנחה]]","v":{"v":195,"d":"₪ 195.00"}}]
[null,"חשבונית 3-456-2 נתונים 2","3-456-2","א4568",40,{"v":4,"d":"₪ 4.00"},{"v":5,"d":"₪ 5.00"},{"$f":"(InvoiceDetails[[#This Row],[כמות]]*InvoiceDetails[[#This Row],[מחיר ליחידה]])-InvoiceDetails[[#This Row],[הנחה]]","v":{"v":155,"d":"₪ 155.00"}}]
[null,"חשבונית 3-456-2 נתונים 3","3-456-2","א4569",30,{"v":6,"d":"₪ 6.00"},{"v":7,"d":"₪ 7.00"},{"$f":"(InvoiceDetails[[#This Row],[כמות]]*InvoiceDetails[[#This Row],[מחיר ליחידה]])-InvoiceDetails[[#This Row],[הנחה]]","v":{"v":173,"d":"₪ 173.00"}}]
[null,"חשבונית 3-456-2 נתונים 4","3-456-2","א4570",40,{"v":7,"d":"₪ 7.00"},null,{"$f":"(InvoiceDetails[[#This Row],[כמות]]*InvoiceDetails[[#This Row],[מחיר ליחידה]])-InvoiceDetails[[#This Row],[הנחה]]","v":{"v":280,"d":"₪ 280.00"}}]
[null,"חשבונית 3-456-2 נתונים 5","3-456-2","א4571",10,{"v":4,"d":"₪ 4.00"},null,{"$f":"(InvoiceDetails[[#This Row],[כמות]]*InvoiceDetails[[#This Row],[מחיר ליחידה]])-InvoiceDetails[[#This Row],[הנחה]]","v":{"v":40,"d":"₪ 40.00"}}]
[null,"חשבונית 3-456-2 נתונים 6","3-456-2","א4572",5,{"v":8,"d":"₪ 8.00"},null,{"$f":"(InvoiceDetails[[#This Row],[כמות]]*InvoiceDetails[[#This Row],[מחיר ליחידה]])-InvoiceDetails[[#This Row],[הנחה]]","v":{"v":40,"d":"₪ 40.00"}}]
[null,"חשבונית 3-456-2 נתונים 7","3-456-2","א4573",70,{"v":6,"d":"₪ 6.00"},null,{"$f":"(InvoiceDetails[[#This Row],[כמות]]*InvoiceDetails[[#This Row],[מחיר ליחידה]])-InvoiceDetails[[#This Row],[הנחה]]","v":{"v":420,"d":"₪ 420.00"}}]
[null,"חשבונית 3-456-2 נתונים 8","3-456-2","א4574",25,{"v":4,"d":"₪ 4.00"},null,{"$f":"(InvoiceDetails[[#This Row],[כמות]]*InvoiceDetails[[#This Row],[מחיר ליחידה]])-InvoiceDetails[[#This Row],[הנחה]]","v":{"v":100,"d":"₪ 100.00"}}]
[null,"חשבונית 3-456-2 נתונים 9","3-456-2","א4575",5,{"v":7,"d":"₪ 7.00"},{"v":3,"d":"₪ 3.00"},{"$f":"(InvoiceDetails[[#This Row],[כמות]]*InvoiceDetails[[#This Row],[מחיר ליחידה]])-InvoiceDetails[[#This Row],[הנחה]]","v":{"v":32,"d":"₪ 32.00"}}]
[null,"חשבונית 3-456-2 נתונים 10","3-456-2","א4576",80,{"v":1,"d":"₪ 1.00"},null,{"$f":"(InvoiceDetails[[#This Row],[כמות]]*InvoiceDetails[[#This Row],[מחיר ליחידה]])-InvoiceDetails[[#This Row],[הנחה]]","v":{"v":80,"d":"₪ 80.00"}}]
[null,"חשבונית 3-456-2 נתונים 11","3-456-2","א4577",65,{"v":7,"d":"₪ 7.00"},null,{"$f":"(InvoiceDetails[[#This Row],[כמות]]*InvoiceDetails[[#This Row],[מחיר ליחידה]])-InvoiceDetails[[#This Row],[הנחה]]","v":{"v":455,"d":"₪ 455.00"}}]
[null,"חשבונית 3-456-2 נתונים 12","3-456-2","א4578",44,{"v":1,"d":"₪ 1.00"},null,{"$f":"(InvoiceDetails[[#This Row],[כמות]]*InvoiceDetails[[#This Row],[מחיר ליחידה]])-InvoiceDetails[[#This Row],[הנחה]]","v":{"v":44,"d":"₪ 44.00"}}]

{"sheet":"אודות המעקב אחר החשבוניות","index":4,"n_rows":40,"n_cols":3,"rows_kept":40,"merged":[[3,1,3,7],[4,1,4,7],[5,1,5,7],[6,1,6,7],[7,2,7,7],[8,2,8,7],[9,2,9,7],[10,2,10,7],[11,2,11,7],[12,1,12,7],[13,2,13,3],[14,2,14,7],[15,1,15,7],[16,2,16,7],[17,2,17,7],[18,2,18,7],[19,2,19,7],[20,2,20,7],[21,2,21,7],[22,1,22,7],[23,1,23,7],[24,2,24,7],[25,2,25,7],[26,2,26,7],[27,2,27,7],[28,1,28,7],[29,1,29,7],[30,2,30,7],[31,2,31,7],[32,2,32,7],[33,2,33,7],[34,2,34,7],[36,2,36,7],[37,2,37,7],[38,2,38,7],[39,2,39,7]]}
[null,"אודות המעקב אחר החשבוניות"]
[]
[]
[null,"המעקב אחר החשבוניות מיועד לתעד היסטוריה של לקוחות, חשבוניות ופרטי חשבוניות כך שתוכל לאחסן חשבוניות מרובות מבלי ליצור קבצים מרובים. באפשרותך גם להשתמש במעקב אחר החשבוניות כדי לנתח את הנתונים שהוגשו עבורם חשבוניות בעבר. לדוגמה, באפשרותך להציג את כל החשבוניות עבור לקוח או פרוייקט ספציפי או להציג את כל החשבוניות עבור החודש האחרון, השנה האחרונה ועוד."]
[null,"לפני שתתחיל, עיין בנתונים לדוגמה שסופקו. בגיליון 'חשבונית', בחר את התא שמשמאל ל'מס' חשבונית' (תא L8) ותופיע רשימה נפתחת. בחר את חץ הרשימה הנפתחת ולאחר מכן בחר חשבונית לדוגמה. שים לב כיצד כל פרטי החשבונית משתנים באופן אוטומטי כדי לשקף את החשבונית שנבחרה. כעת, עיין בגליונות 'לקוחות', 'חשבוניות - ראשי' ו'פרטי חשבוניות'. כל אחד מגליונות אלה מספק מידע עבור החשבונית וכל השינויים שתבצע יתעדכנו באופן אוטומטי. "]
[null,"כיצד ניתן להתחיל בעבודה?"]
[null,"שנה את הגיליון 'חשבונית' כך שישקף את פרטי החברה שלך על-ידי ביצוע השלבים הבאים:"]
[null,"1.","נווט אל הגיליון חשבונית ובכרטיסיה סקירה, בקבוצה הגנה, בחר הסרת הגנת גיליון. "]
[null,null,"הערה: הגיליון 'חשבונית' מוגן כדי לעזור למנוע שינויים לא מכוונים, מאחר שכפי שהוזכר קודם לכן, רוב הנתונים בגיליון זה נשלפים מכל הגליונות האחרים בחוברת העבודה. "]
[null,"2.","התאם אישית את הכותרת העליונה של החשבונית על-ידי הקלדת שם החברה, הכתובת, העיר, המיקוד, כתובת הדואר האלקטרוני, אתר האינטרנט וכן הלאה. בחלק התחתון של החשבונית (שורה 43), שנה את הוראות התשלום. "]
[null,null,"חשוב! אל תשנה את פרטי החיוב או החשבונית. כל התאים האלה מכילים נוסחאות שיעדכנו את החשבונית באופן אוטומטי, כפי שצוין במקטע אודות המעקב אחר החשבוניות.  "]
[null,"3.","(אופציונלי) שנה את הצבעים בחוברת העבודה: בכרטיסיה פריסת עמוד, בקבוצה ערכות נושא, בחר צבעים ובחר ערכת צבעים אחרת של ערכת נושא מגלריית הצבעים. "]
[null,"עצה: צור ערכת צבעים מותאמת אישית של ערכת נושא לפי מיתוג החברה שלך! לשם כך, בכרטיסיה פריסת עמוד, בקבוצה ערכות נושא, בחר צבעים ולאחר מכן בחר התאמה אישית של צבעים. לקבלת מידע נוסף אודות יצירת ערכת צבעים מותאמת אישית, עיין בנושא העזרה הבא: "]
[null,null,"התאם אישית ערכת נושא של מסמך."]
[null,"4.","לאחר שתבצע את השינויים הרצויים, חזור לגיליון 'חשבונית' ובכרטיסיה 'סקירה', בקבוצה 'שינויים', בחר 'הגנת גיליון' ולאחר מכן בחר 'אישור'. כאשר הגיליון 'חשבונית' מוגן, התא היחיד שניתן לבחור הוא התא עם הרשימה הנפתחת 'מס' חשבונית'."]
[null,"כיצד ניתן ליצור חשבונית?"]
[null,"1.","בגיליון 'לקוחות', הזן מידע על לקוחות, כגון שם החברה וכתובת. שים לב ש'מס' חברה' הוא ערך חשוב מאחר שהוא מספק עבור כל חברה מזהה ייחודי הנמצא בשימוש במעקב אחר החשבוניות כולו. כמו כן, שים לב שעליך להוסיף חברה פעם אחת בלבד. עבור חשבוניות נוספות לאותה חברה, ניתן לדלג על שלב זה. "]
[null,null,"הערה: אם תקצה את אותו מספר ליותר מחברה אחת או תזין את אותו שם חברה יותר מפעם אחת, הערכים יהפכו לאדומים כדי להתריע בפניך על הכפילות. "]
[null,"2.","בגיליון 'חשבוניות - ראשי', הזן את המידע העיקרי עבור החשבונית, כגון מספר חשבונית, תאריך חשבונית ותיאור פרוייקט. בדומה ל'מס' חברה', 'מס' חשבונית' הוא ערך חשוב מאחר שהוא מספק עבור כל חשבונית מזהה ייחודי הנמצא בשימוש במעקב אחר החשבוניות כולו. ערך חשוב נוסף הוא החברה. בעת בחירת חברה מהרשימה הנפתחת, החשבונית שלך משויכת לחברה זו. לאחר מכן, כאשר תבחר מספר חשבונית בגיליון 'חשבונית', המידע אודות חברה זו, כגון שם החברה וכתובת החברה, יאוכלסו באופן אוטומטי בחשבונית."]
[null,null,"הערה: אם תקצה את אותו מספר ליותר מחשבונית אחת, הערכים יהפכו לאדומים כדי להתריע בפניך על הכפילות. "]
[null,"3.","בגיליון 'פרטי חשבוניות', הזן את הפרטים של החשבונית שלך, כגון תיאור פריט, מספר פריט, כמות ומחיר ליחידה. הרשימה הנפתחת 'מס' חשבונית' מספקת רשימה של החשבוניות שהזנת בגיליון 'חשבוניות - ראשי', כדי להפוך את הזנת הנתונים לנוחה יותר. בדומה ל'מס' חברה' בשלב הקודם, 'מס' חשבונית' משייך פריט זה לחשבונית ספציפית. בעת בחירת מספר חשבונית בגליון 'חשבונית' מהרשימה הנפתחת 'מס' חשבונית', פריטי החשבונית הקשורים יופיעו עבור חשבונית זו."]
[null,null,"הערה: קיימת מגבלה של 25 פריטים לכל חשבונית. אם יתווספו יותר מ- 25 פריטים, כל הערכים התואמים יהפכו לאדומים כדי להתריע בפניך על מגבלה זו. אם יש לך יותר מ- 25 פריטי חשבונית, תצטרך ליצור חשבונית שניה. "]
[null,"כיצד ניתן להוסיף עוד לקוחות, חשבוניות ופרטי חשבוניות?"]
[null,"הנתונים עבור לקוחות, חשבוניות ופרטי חשבוניות מאוחסנים בטבלאות Excel. בעת הוספת שורה חדשה לטבלה, השורה החדשה שמתווספת מעוצבת באופן אוטומטי והחישובים מועתקים. כדי להוסיף שורות טבלה חדשות, בצע אחת מהפעולות הבאות:"]
[null,"● ","אם לטבלה אין שורת סכום, התחל להקליד מתחת לטבלה והיא תתרחב באופן אוטומטי בעת ההקשה על מקש Enter או Tab."]
[null,"● ","מקם את מצביע התא בתא האחרון מעל שורת הסכום, כגון בטבלה 'חשבוניות' בתא 'הערות' עבור החשבונית האחרונה, ולאחר מכן הקש Tab."]
[null,"● ","בכרטיסיה בית, בקבוצה תאים, בחר הוסף ולאחר מכן בחר שורת טבלה מעל או שורת טבלה מתחת. "]
[null,"● ","בפינה השמאלית התחתונה של הטבלה, מקם את העכבר על נקודת האחיזה לשינוי גודל של הטבלה וגרור כדי להגדיל את מספר שורות הטבלה הזמינות."]
[null,"כיצד אוכל לנתח את פרטי החשבוניות שלי?"]
[null,"כפי שצוין במקטע 'אודות המעקב אחר החשבוניות', לאחר שתזין כמה חשבוניות, תוכל להציג רשימה של כל החשבוניות עבור לקוח ספציפי, פרוייקט, מרווח תאריכים מוגדר ועוד. ניתוח מסוג זה מתבצע באמצעות מסנן המאפשר לך לצמצם במהירות רשימה של נתונים. כדי לגשת למסנן בטבלאות 'לקוחות', 'חשבוניות' או 'פרטי חשבוניות', בחר חץ רשימה נפתחת לצד שם שדה כלשהו בטבלה. תוצג חלונית מסנן שתספק לך מגוון אפשרויות סינון. להלן כמה דוגמאות לסינון שיעזרו לך להתחיל בעבודה:"]
[null,"● ","כדי להציג את הסכום הכולל שהגשת ללקוח ספציפי בחשבונית: בגיליון 'חשבוניות - ראשי', משמאל לשדה 'מס' חברה', בחר את חץ הרשימה הנפתחת. בחלונית המסנן, לחץ על 'בחר הכל' כדי לבטל את הבחירה של כל החברות, בחר את החברה הרצויה ולאחר מכן בחר 'אישור'. "]
[null,null,"עצה: בחלונית המסנן, באפשרותך גם להקליד את שם הלקוח בתיבת הטקסט חיפוש כדי לבצע חיפוש מהיר ברשימה הזמינה."]
[null,"● ","כדי להציג את כל החשבוניות עבור לקוח ספציפי ופרוייקטים ספציפיים: תחילה, בצע סינון לאיתור הלקוח הרצוי באמצעות השלבים המפורטים בדוגמה הקודמת. לאחר מכן, משמאל ל'מס' פרוייקט', בחר את חץ הרשימה הנפתחת. בחלונית המסנן, בחר את הפרוייקט או הפרוייקטים הרצויים ולאחר מכן בחר 'אישור'. "]
[null,"● ","כדי להציג את כל החשבוניות עבור החודש הקודם: בגיליון 'חשבוניות - ראשי', משמאל לשדה 'תאריך חשבונית', בחר את חץ הרשימה הנפתחת, הצבע על 'מסנני תאריכים' ולאחר מכן בחר את 'בחודש שעבר'."]
[null,"● ","כדי להציג את כל הלקוחות שיש להם אותו אזור חיוג: בגיליון 'לקוחות', משמאל לשדה 'טלפון', בחר את חץ הרשימה הנפתחת. בחלונית המסנן, לחץ בתוך תיבת הטקסט 'חיפוש', הקלד את אזור החיוג ולאחר מכן בחר אישור. "]
[null,"עצות לסינון"]
[null,"● ","אם טבלה כוללת שורת סכום, כגון 'לקוחות' ו'חשבוניות', הסכומים המחושבים משקפים רק את הרשימה המסוננת."]
[null,"● ","השתמש במסננים מרובים בשדה יחיד או בשדות מרובים כדי לכוונן את התוצאות."]
[null,"● ","כדי לנקות מסנן בודד, בחר את חץ הרשימה הנפתחת עבור עמודה שסוננה קודם ולאחר מכן בחר נקה מסנן מ- <שם שדה>."]
[null,"● ","כדי לנקות כמה מסננים בו-זמנית, מקם את מצביע התא בטבלה. בכרטיסיה בית, בקבוצה עריכה, בחר מיין וסנן ולאחר מכן בחר נקה."]